bitfinex-derivatives/quotes_SOLF0:USTF0_20250311
["timestamp","ask_amount","ask_price","bid_price","bid_amount"]
[1741717114361,261.18,126.38,126.33,42.16]
[1741717114670,261.18,126.38,126.3,46.2215]
[1741717115369,0.05047203,126.35,126.33,0.05979783]
[1741717115672,7.9173,126.34,126.33,0.05979783]
[1741717115872,0.05047203,126.35,126.33,0.05979783]
[1741717116177,0.05047203,126.35,126.34,42.06]
[1741717116363,261.18,126.38,126.34,49.9771]
[1741717116566,261.18,126.38,126.34,42.06]
[1741717116771,269.095,126.38,126.34,42.06]
[1741717116970,261.18,126.38,126.34,42.06]
[1741717117173,261.18,126.38,126.33,0.05979783]
[1741717117471,0.0511859,126.37,126.33,0.05979783]
[1741717118068,32.54144641,126.37,126.33,0.05979783]
[1741717118469,0.0511859,126.37,126.33,0.05979783]
[1741717118974,7.9161,126.36,126.33,0.05979783]
[1741717119375,0.0511859,126.37,126.33,0.05979783]
[1741717120976,7.9173,126.34,126.33,0.05979783]
[1741717121978,32.49026051,126.36,126.23,10.56302971]
[1741717122178,32.49026051,126.33,126.23,10.56302971]
[1741717122379,4.0057,126.32,126.23,10.56302971]
[1741717122677,4.0057,126.32,126.24,7.9232]
[1741717122678,7.9208,126.29,126.24,7.9232]
[1741717122874,4.0057,126.32,126.22,41.31403593]
[1741717123075,74.25026051,126.36,126.24,32.49026051]
[1741717123268,0.05858084,126.28,126.26,0.05625632]
[1741717123470,78.25596051,126.36,126.25,41.76]
[1741717123673,0.05465975,126.28,126.27,7.9217]
[1741717123873,78.25596051,126.36,126.29,0.05522711]
[1741717124070,0.0522775,126.34,126.29,41.68]
[1741717124275,0.0522775,126.34,126.31,0.05352678]
[1741717125077,32.54253801,126.34,126.31,2.678e-05]
[1741717125281,7.9186,126.32,126.31,2.678e-05]
[1741717128083,12.1229,126.33,126.31,2.678e-05]
[1741717128281,0.0522775,126.34,126.31,2.678e-05]
[1741717128887,0.0522775,126.34,126.31,7.91892678]
[1741717129087,0.0522775,126.34,126.31,2.678e-05]
[1741717131590,0.0522775,126.34,126.31,4.28282678]
[1741717131889,7.9698775,126.34,126.31,4.28282678]
[1741717132091,0.0522775,126.34,126.31,4.28282678]
[1741717132387,7.9179,126.33,126.31,2.678e-05]
[1741717132579,0.0522775,126.34,126.31,2.678e-05]
[1741717132890,0.0522775,126.34,126.31,7.91892678]
[1741717133086,0.0522775,126.34,126.31,2.678e-05]
[1741717133385,4.2223,126.41,126.32,4.1978]
[1741717133587,4.2223,126.41,126.34,32.49026051]
[1741717133787,261.26,126.44,126.35,41.14]
[1741717134693,0.05877313,126.41,126.38,0.05335378]
[1741717134892,0.05877313,126.41,126.39,7.9138]
[1741717135092,0.05877313,126.41,126.38,41.23335378]
[1741717135489,0.05877313,126.41,126.4,7.9136]
[1741717135690,0.05877313,126.41,126.38,41.23335378]
[1741717135891,7.97207313,126.41,126.38,41.23335378]
[1741717136095,0.05877313,126.41,126.38,41.23335378]
[1741717136394,0.05877313,126.41,126.39,3.9513]
[1741717136593,0.05877313,126.41,126.39,11.8651]
[1741717136995,0.05877313,126.41,126.39,3.9513]
[1741717137185,261.26,126.44,126.39,3.9513]
[1741717137495,261.26,126.44,126.4,3.9858]
[1741717138394,0.0504454,126.43,126.41,0.05950479]
[1741717138594,0.0504454,126.43,126.42,41.16]
[1741717138795,0.0504454,126.43,126.41,41.13950479]
[1741717138992,0.0504454,126.43,126.42,7.9123]
[1741717140992,0.0504454,126.43,126.41,40.93950479]
[1741717141394,16.1795,126.5,126.47,7.9088]
[1741717141593,4.2248,126.5,126.46,40.88]
[1741717141891,261.14,126.53,126.46,73.37026051]
[1741717142092,261.14,126.53,126.47,7.8543]
[1741717142296,261.14,126.53,126.46,73.37026051]
[1741717142492,0.05986525,126.51,126.47,7.9162]
[1741717142686,0.05986525,126.51,126.49,0.05827631]
[1741717142891,0.05986525,126.51,126.5,41.14]
[1741717143099,301.25917182,126.59,126.5,41.14]
[1741717143290,293.35527182,126.59,126.5,41.14]
[1741717143498,301.25737182,126.59,126.54,7.9045]
[1741717143805,293.35527182,126.59,126.55,41.1]
[1741717143995,293.35527182,126.59,126.57,7.9027]
[1741717144198,293.35527182,126.59,126.55,41.1]
[1741717144392,293.41500061,126.59,126.57,0.0582007]
[1741717144594,301.31690061,126.59,126.57,0.0582007]
[1741717144797,293.41500061,126.59,126.57,0.0582007]
[1741717146096,261.15972879,126.59,126.57,0.0582007]
[1741717146497,0.05972879,126.59,126.57,0.0582007]
[1741717147801,4.2059,126.64,126.57,0.0582007]
[1741717148301,12.1047,126.64,126.6,7.901]
[1741717148498,261.0,126.65,126.6,40.82]
[1741717149090,0.05283716,126.64,126.61,0.05945576]
[1741717151001,7.8998,126.62,126.61,0.05945576]
[1741717151201,0.05283716,126.64,126.61,0.05945576]
[1741717152403,7.8998,126.62,126.61,0.05945576]
[1741717152600,52.59888235,126.63,126.56,40.7]
[1741717153505,7.9008,126.61,126.57,7.9029]
[1741717153810,7.96076497,126.61,126.58,0.05426775]
[1741717154002,0.05996497,126.61,126.58,7.95656775]
[1741717154298,0.05996497,126.61,126.58,0.05426775]
[1741717154505,7.897,126.67,126.63,7.8991]
[1741717154803,7.897,126.67,126.64,40.6]
[1741717155193,7.897,126.67,126.64,48.4984]
[1741717155497,260.8,126.68,126.64,40.6]
[1741717155697,0.05111723,126.67,126.64,40.65551611]
[1741717155897,0.05111723,126.67,126.64,48.55381611]
[1741717156098,0.05111723,126.67,126.64,40.65551611]
[1741717156403,4.1653,126.73,126.64,40.65551611]
[1741717156605,7.8942,126.71,126.67,7.8963]
[1741717156805,260.8,126.74,126.68,40.42]
[1741717157104,52.59888235,126.73,126.68,40.42]
[1741717157399,52.59888235,126.73,126.65,40.36]
[1741717157598,7.8973,126.66,126.65,40.34]
[1741717157803,52.59888235,126.73,126.68,0.05843877]
[1741717158196,52.59888235,126.73,126.65,40.34]
[1741717158404,52.59888235,126.73,126.69,0.05333685]
[1741717158599,7.8948,126.7,126.69,0.05333685]
[1741717159302,52.59888235,126.73,126.69,0.05333685]
[1741717160306,92.71888235,126.73,126.65,40.34]
[1741717161012,52.59888235,126.73,126.65,40.34]
[1741717161309,52.59888235,126.73,126.61,8.3245]
[1741717161607,0.05037675,126.7,126.66,0.05863212]
[1741717162103,7.8967,126.67,126.66,0.05863212]
[1741717163604,52.6492591,126.7,126.66,7.95563212]
[1741717163605,0.05037675,126.7,126.66,7.95563212]
[1741717163805,0.05037675,126.7,126.66,0.05863212]
[1741717164610,7.8967,126.67,126.66,0.05863212]
[1741717164803,0.05037675,126.7,126.66,0.05863212]
[1741717165205,7.8965,126.68,126.66,0.05863212]
[1741717165401,0.05037675,126.7,126.67,39.84]
[1741717165803,7.94557675,126.7,126.67,39.84]
[1741717166005,0.05037675,126.7,126.67,39.84]
[1741717167010,0.05037675,126.7,126.66,0.05863212]
[1741717167203,7.8967,126.67,126.66,0.05863212]
[1741717167400,0.05037675,126.7,126.66,0.05863212]
[1741717168200,32.32248394,126.69,126.62,39.7]
[1741717168404,4.2536,126.68,126.61,39.7]
[1741717168915,4.2536,126.68,126.58,4.1361]
[1741717169114,32.32248394,126.66,126.59,39.66]
[1741717169307,260.6,126.65,126.59,39.66]
[1741717169611,7.9007,126.61,126.59,39.66]
[1741717169812,260.6,126.65,126.61,0.05116246]
[1741717170014,0.04989052,126.61,126.57,39.66]
[1741717170204,260.6,126.65,126.57,39.66]
[1741717170404,7.8989,126.64,126.59,7.9012]
[1741717170606,260.6,126.65,126.57,39.66]
[1741717171013,268.4982,126.65,126.59,7.9014]
[1741717171217,0.05384122,126.62,126.6,0.05225987]
[1741717173509,260.6,126.65,126.61,39.5]
[1741717174106,268.4983,126.65,126.61,39.5]
[1741717174317,268.4983,126.65,126.62,7.8997]
[1741717174716,260.65593587,126.65,126.61,39.5]
[1741717175116,260.65593587,126.65,126.6,0.05225987]
[1741717175315,260.65593587,126.65,126.6,39.55225987]
[1741717176418,7.8998,126.63,126.6,47.45285987]
[1741717176720,260.65593587,126.65,126.6,39.55225987]
[1741717176915,0.05593587,126.65,126.6,39.55225987]
[1741717178215,0.05593587,126.65,126.64,7.8986]
[1741717178417,0.05593587,126.65,126.64,47.3386]
[1741717179514,0.05593587,126.65,126.64,39.44]
[1741717180829,7.95383587,126.65,126.64,39.44]
[1741717181320,0.05593587,126.65,126.63,0.05649683]
[1741717181520,7.8986,126.64,126.63,0.05649683]
[1741717181721,0.05593587,126.65,126.63,0.05649683]
[1741717182533,0.05593587,126.65,126.64,7.8986]
[1741717183437,264.5411,126.71,126.63,32.37898077]
[1741717183632,264.5411,126.71,126.63,32.32248394]
[1741717183827,264.5411,126.71,126.65,7.8974]
[1741717184032,264.5411,126.71,126.66,39.2]
[1741717184533,7.8963,126.68,126.67,0.05404833]
[1741717185133,7.8961,126.68,126.67,0.05404833]
[1741717185637,7.8959,126.69,126.67,0.05404833]
[1741717185936,0.05196454,126.7,126.67,0.05404833]
[1741717186838,7.8961,126.68,126.67,0.05404833]
[1741717188633,0.05196454,126.7,126.67,0.05404833]
[1741717189438,7.8961,126.68,126.67,4.833e-05]
[1741717190031,40.21858394,126.68,126.67,4.833e-05]
[1741717190236,34.68248394,126.68,126.58,16.154]
[1741717190429,32.32248394,126.68,126.59,39.02]
[1741717190837,7.9002,126.62,126.59,39.02]
[1741717191441,0.0527542,126.62,126.59,46.97295713]
[1741717191940,0.0527542,126.62,126.59,39.07155713]
[1741717192141,0.0527542,126.62,126.6,39.0]
[1741717192437,0.0527542,126.62,126.59,39.05155713]
[1741717192641,7.9529542,126.62,126.59,39.05155713]
[1741717193031,0.0527542,126.62,126.61,7.9004]
[1741717193232,0.0527542,126.62,126.59,39.05155713]
[1741717193736,0.0527542,126.62,126.59,46.95295713]
[1741717193938,54.8103,126.7,126.59,39.05155713]
[1741717193939,39.02,126.7,126.59,39.05155713]
[1741717194136,7.898,126.65,126.61,7.9001]
[1741717194544,7.898,126.65,126.59,39.0]
[1741717194840,7.8999,126.62,126.59,39.0]
[1741717195039,39.02,126.7,126.59,39.0]
[1741717195232,0.05525439,126.62,126.59,39.06040524]
[1741717195439,7.8989,126.64,126.59,39.0]
[1741717195640,0.05715767,126.62,126.6,7.9006]
[1741717195840,0.05715767,126.62,126.59,39.05086215]
[1741717196340,0.05715767,126.62,126.59,46.95216215]
[1741717196538,0.05715767,126.62,126.59,39.05086215]
[1741717196938,0.05715767,126.62,126.59,46.95236215]
[1741717197134,0.05715767,126.62,126.59,39.05086215]
[1741717197738,7.9007,126.61,126.59,39.05086215]
[1741717197947,0.05715767,126.62,126.59,39.05086215]
[1741717198241,7.9009,126.61,126.59,0.05086215]
[1741717198439,0.05715767,126.62,126.59,0.05086215]
[1741717198840,7.95725767,126.62,126.59,0.05086215]
[1741717199040,0.05715767,126.62,126.59,0.05086215]
[1741717199345,0.05715767,126.62,126.59,7.95216215]
[1741717199544,0.05715767,126.62,126.59,0.05086215]
[1741717199847,7.95755767,126.62,126.59,0.05086215]
[1741717200045,0.05715767,126.62,126.59,0.05086215]
[1741717202450,7.9011,126.6,126.59,0.05086215]
[1741717202644,0.05715767,126.62,126.54,3.9708]
[1741717202844,32.32248394,126.6,126.49,200.56302971]
[1741717203046,32.32248394,126.57,126.49,10.56302971]
[1741717203244,264.8113,126.56,126.49,10.56302971]
[1741717203445,260.66,126.56,126.49,10.56302971]
[1741717203650,260.66,126.56,126.51,7.9066]
[1741717203847,260.66,126.56,126.49,10.56302971]
[1741717204052,7.9600767,126.54,126.51,0.05193037]
[1741717204346,0.0549767,126.54,126.51,0.05193037]
[1741717204742,7.9061,126.52,126.51,0.05193037]
[1741717205849,7.9095,126.47,126.43,39.02]
[1741717206050,36.31068394,126.53,126.43,43.0846]
[1741717206246,32.32248394,126.5,126.42,10.56302971]
[1741717206453,32.32248394,126.48,126.42,10.56302971]
[1741717206652,269.2717,126.47,126.42,10.56302971]
[1741717206853,7.9117,126.43,126.42,10.56302971]
[1741717207054,71.34248394,126.45,126.41,51.02179713]
[1741717207254,71.34248394,126.45,126.41,51.07598652]
[1741717207455,0.05190963,126.44,126.41,51.07598652]
[1741717207653,0.05190963,126.44,126.42,7.9118]
[1741717207846,0.05190963,126.44,126.41,55.38158652]
[1741717208358,260.7,126.47,126.41,55.38158652]
[1741717208556,260.7,126.47,126.41,4.35978939]
[1741717209352,0.05222775,126.45,126.41,4.35978939]
[1741717209555,273.0562,126.53,126.42,32.32248394]
[1741717209756,260.82,126.53,126.42,222.32248394]
[1741717209956,260.82,126.53,126.48,7.9081]
[1741717210157,260.82,126.53,126.48,46.9481]
[1741717210359,260.82,126.53,126.48,39.04]
[1741717210560,0.05431761,126.52,126.49,0.05211448]
[1741717212160,7.9067,126.51,126.49,0.05211448]
[1741717212456,39.09431761,126.52,126.49,1.448e-05]
[1741717212662,7.9098,126.46,126.43,4.1351]
[1741717212864,32.32248394,126.47,126.36,222.32248394]
[1741717213156,32.32248394,126.47,126.37,8.308]
[1741717213360,3.92,126.46,126.37,47.348]
[1741717213563,260.84,126.45,126.37,47.348]
[1741717213759,7.96422331,126.43,126.4,0.05770789]
[1741717214058,0.05232331,126.43,126.4,0.05770789]
[1741717215550,0.05232331,126.43,126.4,7.89e-06]
[1741717215750,0.05232331,126.43,126.31,8.308]
[1741717215751,32.32248394,126.41,126.31,8.308]
[1741717216063,32.32248394,126.41,126.31,51.2866]
[1741717216452,37.90366529,126.42,126.31,51.2866]
[1741717216754,7.9137,126.4,126.31,51.2866]
[1741717216960,0.05092581,126.38,126.35,0.05247128]
[1741717217362,4.02692581,126.38,126.35,0.05247128]
[1741717217554,7.9161,126.36,126.35,0.05247128]
[1741717217760,260.98,126.37,126.28,43.1731]
[1741717217958,32.32248394,126.36,126.28,43.1731]
[1741717218155,32.32248394,126.33,126.22,190.0]
[1741717218362,32.32248394,126.33,126.23,8.2375]
[1741717218668,4.2037,126.35,126.24,32.32248394]
[1741717218862,0.05042305,126.29,126.27,0.05585637]
[1741717219162,0.05042305,126.29,126.24,32.32248394]
[1741717219163,7.9169,126.35,126.3,7.9196]
[1741717219466,71.38248394,126.36,126.28,39.06]
[1741717220166,0.05454427,126.33,126.31,0.05360618]
[1741717220767,7.9186,126.32,126.31,0.05360618]
[1741717221062,0.05454427,126.33,126.31,0.05360618]
[1741717221763,0.05454427,126.33,126.32,39.08]
[1741717221963,7.9134,126.41,126.37,7.9153]
[1741717222160,265.3059,126.45,126.32,43.2472]
[1741717222364,297.62838394,126.45,126.33,32.32248394]
[1741717222659,265.3059,126.45,126.33,32.32248394]
[1741717223054,265.3059,126.45,126.38,0.05438263]
[1741717223260,265.3059,126.45,126.39,71.40248394]
[1741717223464,265.3059,126.45,126.44,7.9111]
[1741717223665,4.2259,126.45,126.44,7.9111]
[1741717223863,261.12,126.51,126.44,39.08]
[1741717224062,261.12,126.51,126.5,7.9073]
[1741717224661,261.12,126.51,126.49,46.9879]
[1741717224862,261.12,126.51,126.49,39.13196568]
[1741717225255,261.12,126.51,126.49,47.03966568]
[1741717225565,261.12,126.51,126.49,39.13196568]
[1741717226862,0.05251457,126.52,126.51,7.9067]
[1741717227373,261.04,126.57,126.53,7.9049]
[1741717227666,261.04,126.57,126.49,91.77189358]
[1741717227667,261.04,126.57,126.54,39.08]
[1741717227963,40.45524946,126.65,126.57,7.9029]
[1741717227964,261.04,126.63,126.57,7.9029]
[1741717228160,261.04,126.63,126.54,39.08]
[1741717228360,268.9393,126.63,126.57,7.9027]
[1741717228666,261.04,126.63,126.58,39.08]
[1741717229464,1.37505927,126.67,126.58,39.08]
[1741717230066,1.37505927,126.67,126.61,0.05448678]
[1741717230661,7.8997,126.63,126.61,0.05448678]
[1741717230961,1.37505927,126.67,126.61,0.05448678]
[1741717231162,39.06,126.68,126.61,0.05448678]
[1741717231356,7.8984,126.65,126.61,0.05448678]
[1741717231763,39.06,126.68,126.61,0.05448678]
[1741717231959,7.8987,126.64,126.61,0.05448678]
[1741717232468,7.8998,126.63,126.61,0.05448678]
[1741717232770,40.43465189,126.68,126.61,0.05448678]
[1741717232957,52.6399279,126.63,126.61,0.05448678]
[1741717233262,52.6399279,126.63,126.53,7.9052]
[1741717233469,52.6399279,126.63,126.54,39.04]
[1741717233663,7.9039,126.56,126.52,190.0]
[1741717233859,7.9039,126.56,126.52,39.04]
[1741717234072,260.88,126.58,126.52,39.04]
[1741717234474,0.05223998,126.56,126.54,0.05333138]
[1741717235068,0.05223998,126.56,126.54,7.95803138]
[1741717235462,0.05223998,126.56,126.54,0.05333138]
[1741717235971,7.9042,126.55,126.54,0.05333138]
[1741717236669,0.05223998,126.56,126.54,0.05333138]
[1741717236869,7.9042,126.55,126.54,0.05333138]
[1741717237068,0.05223998,126.56,126.54,0.05333138]
[1741717238369,0.05223998,126.56,126.54,7.95793138]
[1741717238561,0.05223998,126.56,126.54,0.05333138]
[1741717239572,7.9042,126.55,126.54,0.05333138]
[1741717240265,0.05223998,126.56,126.54,0.05333138]
[1741717240974,7.95603998,126.56,126.54,0.05333138]
[1741717241572,0.05223998,126.56,126.54,0.05333138]
[1741717242570,7.9042,126.55,126.54,0.05333138]
[1741717242966,0.05223998,126.56,126.54,0.05333138]
[1741717243573,0.05223998,126.56,126.55,7.9042]
[1741717243769,0.05223998,126.56,126.54,0.05333138]
[1741717244576,0.05223998,126.56,126.54,7.95783138]
[1741717244773,0.05223998,126.56,126.54,0.05333138]
[1741717245070,0.05223998,126.56,126.54,7.95783138]
[1741717245277,0.05223998,126.56,126.54,0.05333138]
[1741717245477,0.05223998,126.56,126.55,39.02]
[1741717245675,0.05223998,126.56,126.55,46.9242]
[1741717245976,0.05223998,126.56,126.55,39.02]
[1741717246178,0.05223998,126.56,126.55,46.9242]
[1741717246371,260.84,126.64,126.55,39.02]
[1741717246571,260.84,126.64,126.56,52.6399279]
[1741717246770,268.7389,126.64,126.56,52.6399279]
[1741717247073,260.84,126.64,126.56,52.6399279]
[1741717247679,260.84,126.64,126.59,52.69741228]
[1741717247973,235.10482339,126.75,126.6,39.02]
[1741717247974,260.82,126.7,126.6,39.02]
[1741717248476,260.82,126.7,126.64,0.05932341]
[1741717248684,260.82,126.7,126.65,39.02]
[1741717249382,7.8955,126.69,126.65,46.9177]
[1741717249672,260.82,126.7,126.65,39.02]
[1741717249879,7.8964,126.68,126.64,0.05932341]
[1741717250073,260.82,126.7,126.64,0.05932341]
[1741717250474,260.82,126.7,126.68,7.896]
[1741717250673,260.82,126.7,126.67,39.02]
[1741717251081,260.82,126.7,126.67,39.0721227]
[1741717252075,7.8961,126.68,126.67,0.0521227]
[1741717252274,260.82,126.7,126.62,39.0]
[1741717252582,7.8973,126.67,126.63,7.899]
[1741717252771,260.82,126.7,126.62,39.0]
[1741717253176,7.898,126.65,126.62,39.0]
[1741717253682,7.8984,126.65,126.62,7.95556029]
[1741717253879,0.05128054,126.67,126.62,0.05576029]
[1741717254282,7.8992,126.63,126.62,0.05576029]
[1741717255084,7.9008,126.61,126.58,39.0]
[1741717255282,0.05791889,126.64,126.58,39.0]
[1741717255478,52.51196102,126.66,126.58,39.0]
[1741717255680,7.9014,126.6,126.58,39.0]
[1741717255876,260.66,126.62,126.56,7.9032]
[1741717256281,0.06016277,126.6,126.58,0.05697527]
[1741717256679,7.9033,126.57,126.51,39.0]
[1741717256980,52.51196102,126.59,126.49,190.0]
[1741717257180,52.51196102,126.59,126.51,39.0]
[1741717257781,0.0523534,126.56,126.51,39.0]
[1741717258000,0.0523534,126.56,126.54,7.95852377]
[1741717258187,0.0523534,126.56,126.54,0.05412377]
[1741717259682,0.0523534,126.56,126.55,7.9042]
[1741717259882,260.66,126.62,126.55,39.0]
[1741717260482,7.9018,126.59,126.52,3.9467]
[1741717260687,39.0,126.61,126.52,3.9467]
[1741717261285,0.06001657,126.58,126.55,0.05759649]
[1741717262187,7.9031,126.57,126.55,0.05759649]
[1741717262387,0.06001657,126.58,126.55,0.05759649]
[1741717262985,0.06001657,126.58,126.57,7.9029]
[1741717263389,260.66,126.62,126.56,39.0]
[1741717263983,264.9039,126.68,126.61,7.9]
[1741717264184,264.9039,126.68,126.62,39.0]
[1741717264386,52.51196102,126.66,126.59,39.0]
[1741717264589,52.57008905,126.66,126.59,39.0]
[1741717264890,7.9002,126.62,126.59,39.0]
[1741717265087,264.9039,126.68,126.61,7.9546817]
[1741717265282,0.05828448,126.62,126.61,7.9546817]
[1741717265486,264.9039,126.68,126.61,0.0545817]
[1741717265891,7.8977,126.66,126.61,0.0545817]
[1741717266188,264.9039,126.68,126.63,7.8989]
[1741717266494,264.9039,126.68,126.59,39.0]
[1741717266888,264.9039,126.68,126.64,0.05832583]
[1741717267195,7.8979,126.65,126.64,0.05832583]
[1741717267694,7.8979,126.65,126.64,2.583e-05]
[1741717268089,2.36,126.65,126.56,39.0]
[1741717268395,52.51196102,126.63,126.56,39.0]
[1741717268593,7.9017,126.6,126.56,39.0]
[1741717268891,4.115,126.62,126.56,39.0]
[1741717269093,12.0152,126.62,126.56,39.0]
[1741717269294,0.05792074,126.6,126.58,0.05631867]
[1741717270089,313.24988176,126.6,126.58,0.05631867]
[1741717270393,293.11989672,126.6,126.54,4.0793]
[1741717270793,293.11989672,126.6,126.51,4.2696]
[1741717270994,293.11989672,126.6,126.52,38.98]
[1741717271196,293.06197598,126.6,126.52,38.98]
[1741717271391,0.05623332,126.57,126.52,38.98]
[1741717271599,0.05623332,126.57,126.55,0.0605555]
[1741717271893,0.05623332,126.57,126.56,39.0]
[1741717272390,260.68,126.6,126.56,39.0]
[1741717272597,4.2224,126.65,126.57,4.327]
[1741717272896,260.7,126.66,126.57,36.70897598]
[1741717273199,260.7,126.66,126.57,4.327]
[1741717273787,260.7,126.66,126.58,7.9022]
[1741717274498,0.05435383,126.63,126.62,7.8998]
[1741717274998,0.05435383,126.63,126.61,0.05889105]
[1741717275199,0.05435383,126.63,126.62,7.8998]
[1741717276801,260.7,126.66,126.62,4.1918]
[1741717277792,260.7,126.66,126.65,7.8979]
[1741717277997,260.7,126.66,126.65,46.8779]
[1741717279093,260.7,126.66,126.64,0.05208975]
[1741717279298,313.26760577,126.66,126.56,43.2961]
[1741717279497,4.2098,126.65,126.56,47.3475]
[1741717280202,7.8995,126.63,126.56,47.3475]
[1741717280404,0.0561471,126.62,126.59,0.05289859]
[1741717281198,7.9005,126.61,126.59,0.05289859]
[1741717281399,0.0561471,126.62,126.59,0.05289859]
[1741717281795,0.0561471,126.62,126.6,38.98]
[1741717282599,260.7,126.66,126.6,43.266]
[1741717283005,7.8983,126.65,126.61,7.9001]
[1741717283401,260.7,126.66,126.6,43.266]
[1741717283797,260.7,126.66,126.62,0.05791339]
[1741717284005,4.2098,126.71,126.62,0.05791339]
[1741717284308,4.2098,126.71,126.61,8.2997]
[1741717284505,4.2098,126.71,126.65,0.05457388]
[1741717284706,7.8964,126.68,126.65,7.95237388]
[1741717284908,4.2098,126.71,126.65,7.95237388]
[1741717284909,4.2098,126.71,126.65,0.05457388]
[1741717285110,7.8958,126.69,126.66,7.897]
[1741717285312,4.2098,126.71,126.65,0.05457388]
[1741717285502,52.56760577,126.7,126.65,0.05457388]
[1741717285707,7.8958,126.69,126.65,7.95227388]
[1741717285906,4.2098,126.71,126.65,0.05457388]
[1741717286807,12.1041,126.71,126.68,7.8958]
[1741717287200,260.62,126.72,126.68,39.0136188]
[1741717287408,4.1317,126.75,126.68,39.0136188]
[1741717287603,400.45075029,126.78,126.69,8.5116]
[1741717287804,400.45075029,126.78,126.71,7.8939]
[1741717288010,400.45075029,126.78,126.72,38.96]
[1741717288209,400.45075029,126.78,126.73,0.05498331]
[1741717288210,347.88314452,126.78,126.73,0.05498331]
[1741717288413,96.20917802,126.77,126.73,0.05498331]
[1741717288608,96.20917802,126.77,126.69,38.96]
[1741717288803,52.56760577,126.77,126.74,4.743e-05]
[1741717289001,7.8917,126.75,126.74,4.743e-05]
[1741717289809,0.0511515,126.76,126.74,4.743e-05]
[1741717290415,7.8917,126.75,126.74,4.743e-05]
[1741717292716,0.0511515,126.76,126.74,4.743e-05]
[1741717293014,7.8917,126.75,126.74,4.743e-05]
[1741717294110,0.0511515,126.76,126.74,4.743e-05]
[1741717294310,7.8917,126.75,126.74,4.743e-05]
[1741717294613,40.18094607,126.75,126.74,4.743e-05]
[1741717295315,7.8951,126.7,126.68,38.96]
[1741717295713,3.9761,126.74,126.68,38.96]
[1741717295914,7.8954,126.7,126.68,38.96]
[1741717296109,3.9761,126.74,126.68,38.96]
[1741717296315,3.9761,126.74,126.67,8.5116]
[1741717296720,0.05184743,126.72,126.7,0.05529727]
[1741717297120,32.3410935,126.72,126.64,190.0]
[1741717297320,32.3410935,126.72,126.63,38.94]
[1741717297621,32.28924607,126.72,126.64,38.94]
[1741717298022,7.8948,126.7,126.64,38.94]
[1741717298415,0.05766342,126.68,126.66,0.05332214]
[1741717300723,0.05766342,126.68,126.67,7.8967]
[1741717300920,3.9761,126.74,126.66,0.05332214]
[1741717301118,3.9761,126.74,126.64,38.94]
[1741717301626,331.82924607,126.78,126.64,38.94]
[1741717301818,7.8926,126.74,126.71,7.8939]
[1741717302125,7.94208128,126.74,126.71,38.9949051]
[1741717302328,7.893,126.73,126.71,0.0549051]
[1741717302625,0.04948128,126.74,126.71,0.0549051]
[1741717303226,0.04948128,126.74,126.72,7.8932]
[1741717303426,0.04948128,126.74,126.71,0.0549051]
[1741717303927,0.04948128,126.74,126.72,7.8935]
[1741717304128,0.04948128,126.74,126.71,0.0549051]
[1741717304429,0.04948128,126.74,126.71,7.9490051]
[1741717304624,0.04948128,126.74,126.71,0.0549051]
[1741717305024,0.04948128,126.74,126.71,7.9487051]
[1741717305423,7.94208128,126.74,126.71,7.9487051]
[1741717305624,0.04948128,126.74,126.71,0.0549051]
[1741717306323,0.04948128,126.74,126.72,7.8935]
[1741717306631,0.04948128,126.74,126.72,7.8934]
[1741717306830,0.04948128,126.74,126.71,0.0549051]
[1741717307922,260.6,126.78,126.71,0.0549051]
[1741717308129,260.6,126.78,126.71,44.35415117]
[1741717308332,260.6,126.78,126.71,12.0649051]
[1741717309229,7.892,126.75,126.72,7.8932]
[1741717309432,260.6,126.78,126.71,12.0649051]
[1741717310326,7.8913,126.76,126.71,12.0649051]
[1741717310728,260.6,126.78,126.71,12.0649051]
[1741717311329,7.8921,126.75,126.71,19.9589051]
[1741717311527,260.6,126.78,126.71,12.0649051]
[1741717311728,32.28924607,126.76,126.71,4.1410051]
[1741717312028,32.28924607,126.76,126.71,0.0549051]